Cogmind - Beta 13 @@@ ROGUE MODE // 2024.04.01 @ 21:26:44 Player: SuperDrops Result: Destroyed by as-45222 with Assembled Heavy Rifle Performance ------------- Evolutions (1) 500 Regions Visited (5) 1000 Robots Destroyed (29) 145 Value Destroyed (694) 694 Prototype IDs (1) 20 Alien Tech Used (0) 0 Bonus (332) 332 TOTAL SCORE: 2691 Bonus ------- Follower Combat Kills 53 Aligned with FarCom 300 Friendly Fire -21 Cogmind --------- Core Integrity 0/400 Matter 222/300 Energy 59/100 System Corruption 5% Temperature Cool (0) Movement Core (100) Ox1 Location -9/Exiles Parts ------- > --- POWER (1) -------- (None) > --- PROPULSION (2) --- (None) > --- UTILITY (4) ------ Small Storage Unit Signal Interpreter > --- WEAPON (2) ------- (None) > --- INVENTORY (8) ---- Ion Engine Aluminum Leg Medium Laser Light Assault Rifle Light Assault Rifle Grenade Launcher Peak State ------------ > --- POWER ------------ Ion Engine > --- PROPULSION ------- Wheel Wheel > --- UTILITY ---------- Small Storage Unit Signal Interpreter Light Armor Plating Light Armor Plating > --- WEAPON ----------- Firepult > --- INVENTORY -------- Ion Engine Aluminum Leg Medium Laser Light Assault Rifle Light Assault Rifle Grenade Launcher [Rating: 27] Favorites ----------- Power Light Nuclear Core Engine Ion Engine Power Core Light Nuclear Core Propulsion Light Treads Treads Light Treads Wheel Wheel Utility Small Storage Unit Storage Small Storage Unit Processor Signal Interpreter Protection Light Armor Plating Weapon Assault Rifle Energy Gun EM Pulse Gun Energy Cannon Firepult Ballistic Gun Assault Rifle Launcher Grenade Launcher Build | -11 -10 -10 -9 -9 -9 ------- Run | Yrd Mat Min Mat Min Exi Slots Evolved 2 | . . . 2 . . Power . | . . . . . . Propulsion . | . . . . . . Utility 2 | . . . 2 . . Weapon . | . . . . . . Parts Attached 20 | 7 2 . 4 6 1 Power 3 | 1 1 . . 1 . Engine 2 | 1 . . . 1 . Core 1 | . 1 . . . . Reactor . | . . . . . . Propulsion 4 | 2 . . . 2 . Treads 2 | 2 . . . . . Leg . | . . . . . . Wheel 2 | . . . . 2 . Hover . | . . . . . . Flight . | . . . . . . Utility 7 | 1 1 . 3 2 . Device . | . . . . . . Storage 1 | 1 . . . . . Processor 2 | . . . 2 . . Hackware . | . . . . . . Protection 4 | . 1 . 1 2 . Artifact . | . . . . . . Weapon 6 | 3 . . 1 1 1 Energy Gun 2 | 2 . . . . . Energy Cannon 1 | . . . . . 1 Ballistic Gun 2 | 1 . . 1 . . Ballistic Cannon . | . . . . . . Launcher 1 | . . . . 1 . Special Weapon . | . . . . . . Impact Weapon . | . . . . . . Slashing Weapon . | . . . . . . Piercing Weapon . | . . . . . . Special Melee Weapon . | . . . . . . Unidentified Prototypes 1 | . . . . . 1 Parts Lost 13 | . . . 4 3 6 Power 2 | . . . 1 . 1 Propulsion 4 | . . . 1 1 2 Utility 4 | . . . 1 1 2 Weapon 3 | . . . 1 1 1 Highest Loss Streak 6 | . . . 4 2 6 To Critical Strikes . | . . . . . . Average Slot Usage (%) 93 | . 98 100 88 72 91 Engine 3 | . 5 . . 7 10 Core 8 | . 8 14 9 . . Treads 19 | . 28 28 20 . . Wheel 4 | . . . . 16 21 Storage 12 | . 14 14 11 11 11 Processor 6 | . . . 13 17 11 Protection 14 | . 12 14 11 6 20 Energy Gun 9 | . 14 14 9 . . Ballistic Gun 11 | . 14 14 11 11 6 Launcher 1 | . . . . 2 6 Naked Turns . | . . . . . . Heaviest Build 38 | 14 17 17 24 20 38 Greatest Support 40 | 40 40 40 40 20 20 Greatest Overweight (x) 8 | . . . . . 8 Average Overweight (x) . | . . . . . . Largest Inventory Capacity 8 | 8 8 8 8 8 8 Average Capacity 7 | 7 8 8 8 8 8 Most Carried 8 | 6 8 8 8 8 8 Average Carried 6 | 3 7 8 7 6 4 Final Capacity 8 | 8 8 8 8 8 8 Final Carried 8 | 6 8 8 8 4 6 Class Distribution -------------------- 100% | Mutant Dominant Class ---------------- Mutant | -10/Materials Mutant | -10/Mines Mutant | -9/Materials Mutant | -9/Mines Mutant | -9/Exiles Resources | -11 -10 -10 -9 -9 -9 ----------- Run | Yrd Mat Min Mat Min Exi Matter Collected 502 | 216 98 12 118 45 13 Remotely . | . . . . . . Salvage Created 945 | . 147 32 567 151 48 Parts 69 | . 9 1 46 13 . Haulers Intercepted . | . . . . . . Recyclers Shooed 1 | . . . 1 . . Parts Field Recycled . | . . . . . . Retrieved Matter . | . . . . . . Parts Self-Destructed . | . . . . . . Prevented . | . . . . . . Kills | -11 -10 -10 -9 -9 -9 ------- Run | Yrd Mat Min Mat Min Exi Combat Hostiles Destroyed 28 | . 5 2 13 5 3 Guns 24 | . 5 1 13 5 . AOE 4 | . . 1 . . 3 Classes Destroyed 9 | . 2 . 5 1 1 Builder 1 | . . . 1 . . Recycler 1 | . . . 1 . . Operator 1 | . . . 1 . . Watcher 1 | . . . 1 . . Swarmer 12 | . 3 2 4 3 . Grunt 11 | . 2 . 8 1 . Brawler 1 | . . . . 1 . Sentry 1 | . . . 1 . . Assembled 3 | . . . . . 3 Best Kill Streak 7 | . 3 2 7 3 3 Combat Bots Only 6 | . 3 2 6 3 3 Max Kills in Single Turn 3 | . 2 1 1 1 3 Gunslinging 1 | . 1 . . . . Exploded 3 | . . 1 . . 3 Melee . | . . . . . . Uniques/NPCs Destroyed . | . . . . . . Combat | -11 -10 -10 -9 -9 -9 -------- Run | Yrd Mat Min Mat Min Exi Hostile Shots Fired 167 | . 7 9 70 39 42 Missed 36 | . . 4 16 7 9 Damage Taken 1905 | . 86 40 565 304 910 Core 449 | . 42 . 29 131 247 Absorbed by Shields . | . . . . . . Core Remaining (%) 91 | 100 . 83 . . . Volleys Fired 95 | . 8 4 54 27 2 Largest 2 | . 2 2 2 2 1 Hottest 250 | . 60 60 60 40 250 Shots Fired 142 | . 16 8 85 30 3 Gun 139 | . 16 8 85 30 . Cannon 3 | . . . . . 3 Launcher . | . . . . . . Special . | . . . . . . Kinetic 96 | . 8 4 54 30 . Thermal 3 | . . . . . 3 Explosive . | . . . . . . Electromagnetic 43 | . 8 4 31 . . Robot Hit Streak 7 | . 7 5 7 5 6 Robot Miss Streak 4 | . 2 4 3 3 2 Penetration Max . | . . . . . . Secondary Targets 3 | . 1 . 2 . . Max Gunslinging Chain 1 | . 1 . 1 . . Shots Hit Robots 86 | . 12 5 49 19 1 Core Hits 57 | . 9 2 27 10 9 Critical Kills . | . . . . . . Critical Parts Destroyed . | . . . . . . Critical Strikes . | . . . . . . Melee Attacks . | . . . . . . Impact . | . . . . . . Slashing . | . . . . . . Piercing . | . . . . . . Sneak Attacks . | . . . . . . Combat Hostiles . | . . . . . . Follow-up Attacks . | . . . . . . Damage Inflicted 1401 | . 145 133 791 161 171 Guns 1051 | . 143 47 700 161 . Cannons 18 | . . . . . 18 Explosions 326 | . . 86 87 . 153 Melee . | . . . . . . Ramming 6 | . 2 . 4 . . Kinetic 632 | . 80 13 378 161 . Thermal 344 | . . 86 87 . 171 Explosive . | . . . . . . Electromagnetic 419 | . 63 34 322 . . Impact . | . . . . . . Slashing . | . . . . . . Piercing . | . . . . . . Highest Corruption 5 | . . . . 5 5 Average Corruption 5 | . . . . 5 5 Corruption Purged . | . . . . . . Corruption Blocked . | . . . . . . Effects 8 | . . . . 1 7 Message Errors 2 | . . . . . 2 Matter Fused 2 | . . . . 1 1 Heat Flow Errors 2 | . . . . . 2 Data Loss (minor) 1 | . . . . . 1 Misfires 1 | . . . . . 1 Overload Shots . | . . . . . . Overflow Damage . | . . . . . . Projectiles . | . . . . . . Explosions . | . . . . . . Melee . | . . . . . . Knockbacks . | . . . . . . Impact . | . . . . . . Kinetic . | . . . . . . Secondary . | . . . . . . Self-Inflicted Damage 38 | . . . 26 . 12 Shots 2 | . . . 1 . 1 Rammed 2 | . 1 . 1 . . Targets Rammed 2 | . 1 . 1 . . Kicked . | . . . . . . Crushed . | . . . . . . Highest Temperature 279 | . 81 30 108 3 279 Average Temperature 60 | . 32 11 35 3 138 Received Heat Transfer 246 | . 42 . 192 12 . Effects 1 | . . . . . 1 Energy Bleed 1 | . . . . . 1 Siege Activations . | . . . . . . Robots Corrupted . | . . . . . . Combat Hostiles . | . . . . . . Parts Fried . | . . . . . . Impact Corruptions . | . . . . . . Robots Melted . | . . . . . . Combat Hostiles . | . . . . . . Parts Melted 2 | . . . 2 . . Heat Transferred 1530 | . . 150 100 . 1280 Parts Sabotaged . | . . . . . . Parts Stolen . | . . . . . . Parts Stripped . | . . . . . . Power Chain Reactions 3 | . . 1 2 . . Alert | -11 -10 -10 -9 -9 -9 ------- Run | Yrd Mat Min Mat Min Exi Peak Influence 282 | . 180 188 282 167 . Initial 72 | . . 70 . 72 . Average 97 | . 94 104 106 130 . Maximum Alert Level 1 | . . . 1 . . Low Security (%) 96 | 100 100 100 88 100 . Level 1 3 | . . . 11 . . Level 2 . | . . . . . . Level 3 . | . . . . . . Level 4 . | . . . . . . Level 5 . | . . . . . . High Security . | . . . . . . Max Security . | . . . . . . Squads Dispatched 2 | . 1 . 1 . . Investigation . | . . . . . . Extermination . | . . . . . . Reinforcement 2 | . 1 . 1 . . Assault . | . . . . . . Garrison . | . . . . . . Intercept . | . . . . . . Searches Triggered . | . . . . . . Construction Impeded . | . . . . . . Haulers Reinforced . | . . . . . . Active Scanning Responses . | . . . . . . Cargo Convoy Interrupts . | . . . . . . Stealth | -11 -10 -10 -9 -9 -9 --------- Run | Yrd Mat Min Mat Min Exi Distress Signals 2 | . . . 2 . . Communications Jammed . | . . . . . . Distress Signals . | . . . . . . Times Spotted 47 | . 6 5 24 6 6 Peak Tracking Total 12 | . 3 3 5 4 12 Tactical Retreats 2 | . . . . . 2 Traps | -11 -10 -10 -9 -9 -9 ------- Run | Yrd Mat Min Mat Min Exi Traps Triggered . | . . . . . . Indirectly . | . . . . . . Trap Hack Attempts . | . . . . . . Triggered . | . . . . . . Disarmed . | . . . . . . Reprogrammed . | . . . . . . Reused . | . . . . . . Traps Extracted . | . . . . . . Installed . | . . . . . . Triggered . | . . . . . . Machines | -11 -10 -10 -9 -9 -9 ---------- Run | Yrd Mat Min Mat Min Exi Machines Disabled 8 | . 2 . 3 . 3 Max in Single Turn 2 | . 1 . 2 . 2 Machines Repaired . | . . . . . . Machines Dismantled . | . . . . . . Machines Sabotaged . | . . . . . . Overloaded Fab Kills . | . . . . . . Hacking | -11 -10 -10 -9 -9 -9 --------- Run | Yrd Mat Min Mat Min Exi Machines Accessed 1 | . . . 1 . . Terminals 1 | . . . 1 . . Fabricators . | . . . . . . Repair Stations . | . . . . . . Recycling Units . | . . . . . . Scanalyzers . | . . . . . . Garrison Access . | . . . . . . Total Hacks 1 | . . . 1 . . Successful 1 | . . . 1 . . Failed . | . . . . . . Catastrophic . | . . . . . . Database Lockouts . | . . . . . . Manual 1 | . . . . . 1 Terminals 1 | . . . 1 . . Fabricators . | . . . . . . Repair Stations . | . . . . . . Recycling Units . | . . . . . . Scanalyzers . | . . . . . . Garrison Access . | . . . . . . Terminal Hacks 1 | . . . 1 . . Alert Level 1 | . . . 1 . . Fabricator Hacks . | . . . . . . Repair Station Hacks . | . . . . . . Recycling Unit Hacks . | . . . . . . Scanalyzer . | . . . . . . Garrison Access Hacks . | . . . . . . Unauthorized Hacks . | . . . . . . Terminals . | . . . . . . Fabricators . | . . . . . . Repair Stations . | . . . . . . Recycling Units . | . . . . . . Scanalyzers . | . . . . . . Garrison Access . | . . . . . . Data Cores Recovered 1 | . . . 1 . . Used 1 | . . . 1 . . Hacking Detections . | . . . . . . Full Trace Events . | . . . . . . Feedback Events . | . . . . . . Feedback Blocked . | . . . . . . Robot Schematics Acquired . | . . . . . . Robots Built . | . . . . . . Authchips . | . . . . . . Time . | . . . . . . Total Robot Build Rating . | . . . . . . Part Schematics Acquired . | . . . . . . Parts Built . | . . . . . . Authchips . | . . . . . . Time . | . . . . . . Total Part Build Rating . | . . . . . . Parts Repaired . | . . . . . . Time . | . . . . . . Parts Recycled . | . . . . . . Recycled Matter . | . . . . . . Retrieved Matter . | . . . . . . Retrieved Components . | . . . . . . Parts Scanalyzed . | . . . . . . Part Schematics Acquired . | . . . . . . Parts Damaged . | . . . . . . Bothacking | -11 -10 -10 -9 -9 -9 ------------ Run | Yrd Mat Min Mat Min Exi Used RIF Installer . | . . . . . . Robots Hacked . | . . . . . . Non-combat . | . . . . . . Combat . | . . . . . . Robot Hacks Applied . | . . . . . . Relay Couplers Released . | . . . . . . Fabnet Peak Effective % . | . . . . . . Robots Rewired . | . . . . . . Allies Hacked . | . . . . . . Hacks Repelled . | . . . . . . Allies | -11 -10 -10 -9 -9 -9 -------- Run | Yrd Mat Min Mat Min Exi Total Allies 3 | . . 3 . . . Largest Group 3 | . . 3 3 . . Highest-Rated Group 40 | . . 40 40 . . Highest-Rated Ally 16 | . . 16 16 . . Total Orders . | . . . . . . Ally Attacks 31 | . . 13 18 . . Total Damage 336 | . . 132 204 . . Kills 7 | . . 2 5 . . Allies Corrupted . | . . . . . . Allies Melted . | . . . . . . Intel | -11 -10 -10 -9 -9 -9 ------- Run | Yrd Mat Min Mat Min Exi Robot Analysis Total . | . . . . . . Derelict Logs Recovered 3 | . . 2 . 1 . Drone Launches . | . . . . . . Drone Recoveries . | . . . . . . Exploration | -11 -10 -10 -9 -9 -9 ------------- Run | Yrd Mat Min Mat Min Exi Turns Passed 1921 | 114 265 595 505 105 337 Spaces Moved 1233 | 63 144 365 224 57 380 Core 10 | 5 . . . . 5 Treads 791 | 58 144 365 224 . . Legs . | . . . . . . Wheels 432 | . . . . 57 375 Hover . | . . . . . . Flight . | . . . . . . Fastest Speed 50 | 50 160 160 160 80 80 Average Speed 133 | 151 160 160 160 80 86 Slowest Speed 450 | 160 160 160 160 80 450 Overloaded Moves . | . . . . . . Propulsion Burnouts . | . . . . . . Robots Hopped . | . . . . . . Cave-ins Triggered . | . . . . . . Exploration Rate (%) 37 | 4 33 70 32 18 70 Regions Visited 5 Branch Regions 3 Pre-discovered Areas 2 | . . 2 . . . Known Exits Taken 2 | . . . 1 1 . Unknown Exits Taken 3 | 1 1 1 . . . Scrap Searched 1 | . . 1 . . . Spaces Dug . | . . . . . . Terrain Destroyed 16 | . . 2 6 . 8 Melee . | . . . . . . Projectile . | . . . . . . AOE 16 | . . 2 6 . 8 Terrain Rammed . | . . . . . . Walls Destroyed . | . . . . . . Machines Disabled . | . . . . . . Actions | -11 -10 -10 -9 -9 -9 --------- Run | Yrd Mat Min Mat Min Exi Total 1372 | 81 162 368 284 91 386 Wait 5 | . 5 . . . . Move 1228 | 62 143 364 223 56 380 Hop . | . . . . . . Pick Up 19 | 12 3 . 1 2 1 Fast Attach 3 | . . . 3 . . Attach 14 | 6 1 . . 6 1 Detach 2 | . . . . . 2 Swap 3 | 1 1 . 1 . . Drop 1 | . . . 1 . . Fire 95 | . 8 4 54 27 2 Melee . | . . . . . . Ram . | . . . . . . Kick . | . . . . . . Crush 2 | . 1 . 1 . . Escape Stasis . | . . . . . . Rewire . | . . . . . . Trap . | . . . . . . Miscellaneous . | . . . . . . Route ------- -11/Scrapyard -10/Materials -10/Mines (discovered 2 exits: *Mat x2) -9/Materials (discovered 2 exits: [*Mat] / *Min) -9/Mines -9/Exiles History --------- Turn | Location | Event 6 | -11/Scrapyard | Discovered new exit (range 15) 115 | -11/Scrapyard | Entered Materials 273 | -10/Materials | Discovered new exit (range 16) 311 | -10/Materials | Build established: Mutant 380 | -10/Materials | Entered Mines 400 | -10/Mines | Assisted by bots powering up and referring to "LRC-V3" 411 | -10/Mines | Learned location of Storage (-9) 461 | -10/Mines | Discovered new exit (range 8) 839 | -10/Mines | Discovered new exit (range 11) 860 | -10/Mines | Joined a pair of Derelicts in attacking an 0b10 outpost 975 | -10/Mines | Entered Materials 975 | -9/Materials | Accompanied by 3 allies 975 | -9/Materials | Evolved 2 slots: Utility x2 1222 | -9/Materials | Discovered new exit (range 9) 1464 | -9/Materials | Lost 4 parts (1p1n1u1w) 1471 | -9/Materials | Discovered new exit (range 6) 1479 | -9/Materials | Identified exit to Mines 1480 | -9/Materials | Entered Mines 1487 | -9/Mines | Met a Derelict bent on vengeance 1532 | -9/Mines | Learned Materials non-interactive machine intel 1582 | -9/Mines | Deemed a non-threat by the Exiles lab entrance 1582 | -9/Mines | Discovered new exit (range 5) 1584 | -9/Mines | Identified exit to Exiles 1585 | -9/Mines | Entered Exiles 1605 | -9/Exiles | Met 8R-AWN 1619 | -9/Exiles | Met EX-HEX 1686 | -9/Exiles | Visited The Gauntlet 1712 | -9/Exiles | Met EX-DEC 1742 | -9/Exiles | Met EX-BIN 1753 | -9/Exiles | Aligned with FarCom system 1754 | -9/Exiles | Given EX-Vault access code 1775 | -9/Exiles | Opened EX-Vault 1780 | -9/Exiles | Found Prototype Energy Cannon 1782 | -9/Exiles | Identified Firepult 1803 | -9/Exiles | Warned to stay clear of 0b10 Research branches 1892 | -9/Exiles | Attacked by the Exiles 1913 | -9/Exiles | Core integrity fell below 50% 1917 | -9/Exiles | Core integrity fell below 20% 1922 | -9/Exiles | Destroyed by as-45222 with Assembled Heavy Rifle Last Messages --------------- System corrupted: FCS attempts to trigger Firepult. System corrupted: Firepult misfires. Machine disabled. EXILES: Hostile robot within lab perimeter. Defensive protocols time, folks! Knocked back. Acquired 8 matter. EX-BIN: "I just want to science!" Ion Engine destroyed. Wheel destroyed. Lgt. Armor Plating destroyed. Machine disabled. Lgt. Armor Plating destroyed. Wheel destroyed. as-90292 destroyed. Overheating: Energy bleed (-3). Firepult destroyed. Acquired 5 matter. as-17587 destroyed. Map ----- +----------------------------------------------------+ | ???????????????????????????????????????"""" ## | | ??????????????????????????????????????#""X" | | ??????????????????????????????????????#" | | ??????????????????????????????????????#" ## | | ??????????????????????????????????????#""""""?# | | ??????????????????????????????????????##"###??# | | ??????????????????????????????????????????????# | | ??????????????????????????????????????????????# | | ?????????????????????????????????????????????## | | ?????????????????????????????????????????????#" | | ?????????????????????????????????????????????#" | | ?????????????????????????????????????????????#" | | ?????????????????????????????????????????????#" | | ????????????????????????????????#####????????#" | | ???????????????????????????????? """#???????#" | | ???????????????????????????????"" """#???????## | | ??????????????????????????????#"" #????????# | | ??????????????????????????????#"" #????????#" | | ???????????? ???????????????#"" "#????????#" | | ???????????? ?????????????? ""?????????#" | | ???????????? ??????????????" "?????????##" | | ????????????? ????????????# #????????##"" | | ??????????????"" ######???### ###?######"" | | ??????????????#" """#####X# #"###"" " | | ??????????????#" """" | | ????????????????# @c %""" | | ?????????????????# % % " | | ?????????????????### a | | ???????????????????### % | | ?????????????????????## | | ??????????????????????## % | | ???????????????????????##" % | | ????????????????????????#""" "" | | ???????????????????????##" ###### | | ???????????????????????#"" ""##????## | | ??????????????????????##""" """##??????? | | ??????????????????????#""" """##???????? | | ??????????????????????#""" ""#????????? | | ??????????????????????#"" ########??# | | ??????????????????????#""" ## #### | | ??????????????????????#"" """ | | ??????????????????????##"" | | ???????????????????????#"""" | | ???????????????????????## | | ????????????????????????#" " | | ????????????????????????#"""" ""## | | ????????????????????????#"" ""#### | | ????????????????????????#" """"##??# | | ????????????????????????#""" """#??## | | ????????????????????????## ""##??#! | +----------------------------------------------------+ Best States ------------- Heat Dissipation 28 Energy Generation 14 Energy Capacity 250 Matter Stores 300 Matter Capacity 300 Sight Range 16 Terrain Scan Density 10 Armor Coverage 375 Evasion (%) 44 Recoil Reduction 2 Item Schematics ----------------- None Robot Schematics ------------------ None Fabricated ------------ Nothing Alien Tech Used ----------------- None Achievements -------------- Dynamic Key Challenges ------------ None Game ------ Seed LauncherActiveSubcomponent Manual? 0 Play Time 00:18:34 Cumulative 6.8 hours Start 2024.04.01 @ 21:10:28 End 2024.04.01 @ 21:26:44 Sessions 1 Manual Loads 0 Difficulty Rogue Special Mode None Game No. 22 Rogue 22 Adventurer 0 Explorer 0 Win Type - Total 0 Types 0/0/0/0/0/0/0/0/0 Lore% 13 Gallery% 8 Achievement% 8 Wizard Run 0 Options --------- Layout 1 ASCII 0 Keyboard 0 Movement Mouse Keybinds 0 Fullscreen 2 Font 24/Proggy Map View 50x35 Zoom Use 0% Tactical HUD 0 Map Filters NONE Filters NONE Steam 1 RUN: 1a757d71-19ad-49c4-8f4f-34d2ad524472